[Event "Late-Titled-Tuesday-Blitz-June-18-2024"]
[Site "Chess.com"]
[Date "2024.06.18"]
[Round "10"]
[White "stollenmonster"]
[Black "harshu27"]
[Result "1-0"]
[WhiteElo "2875"]
[BlackElo "2560"]
[TimeControl "180+1"]
[EndTime "15:53:41 PDT"]
[Termination "stollenmonster won by resignation"]

1. e4 {[%clk 0:03:00.9]} 1... e5 {[%clk 0:02:57]} 2. Nc3 {[%clk 0:03:00.5]} 2...
Nf6 {[%clk 0:02:56.3]} 3. g3 {[%clk 0:03:00.8]} 3... d5 {[%clk 0:02:55.9]} 4.
exd5 {[%clk 0:03:01.7]} 4... Nxd5 {[%clk 0:02:56.8]} 5. Bg2 {[%clk 0:03:02.1]}
5... Nxc3 {[%clk 0:02:55.9]} 6. bxc3 {[%clk 0:03:03]} 6... Nc6 {[%clk 0:02:55]}
7. d3 {[%clk 0:03:03.2]} 7... Bc5 {[%clk 0:02:53.9]} 8. Ne2 {[%clk 0:03:03.2]}
8... O-O {[%clk 0:02:53.8]} 9. O-O {[%clk 0:03:03.9]} 9... Re8 {[%clk 0:02:54]}
10. h3 {[%clk 0:03:04.4]} 10... Bf5 {[%clk 0:02:52.7]} 11. g4 {[%clk 0:03:02.8]}
11... Bg6 {[%clk 0:02:52.6]} 12. Ng3 {[%clk 0:03:03.4]} 12... Qd7 {[%clk
0:02:50.2]} 13. Kh2 {[%clk 0:03:03.9]} 13... Rad8 {[%clk 0:02:48.7]} 14. f4
{[%clk 0:03:04]} 14... exf4 {[%clk 0:02:47.3]} 15. Bxf4 {[%clk 0:03:04.9]} 15...
Bd6 {[%clk 0:02:43.9]} 16. Qd2 {[%clk 0:03:04.5]} 16... Ne5 {[%clk 0:02:33.9]}
17. Rae1 {[%clk 0:03:02.6]} 17... h6 {[%clk 0:02:04]} 18. Ne4 {[%clk 0:02:54.6]}
18... Bf8 {[%clk 0:01:41.2]} 19. Qf2 {[%clk 0:02:49.1]} 19... Qe6 {[%clk
0:01:20.3]} 20. c4 {[%clk 0:02:44.8]} 20... Nxc4 {[%clk 0:00:55.1]} 21. Ng3
{[%clk 0:02:04.4]} 21... Qb6 {[%clk 0:00:35.4]} 22. Rxe8 {[%clk 0:02:03.3]}
22... Rxe8 {[%clk 0:00:25.1]} 23. dxc4 {[%clk 0:02:03.2]} 23... Qxf2 {[%clk
0:00:19.6]} 24. Rxf2 {[%clk 0:02:04.1]} 24... Bc5 {[%clk 0:00:18.2]} 25. Rd2
{[%clk 0:02:03.9]} 25... Bb4 {[%clk 0:00:18.4]} 26. Rd7 {[%clk 0:02:02.1]} 26...
Bxc2 {[%clk 0:00:17.5]} 27. Rxc7 {[%clk 0:02:00.3]} 27... Bb1 {[%clk 0:00:12.9]}
28. Rxb7 {[%clk 0:01:59.2]} 28... a5 {[%clk 0:00:13.2]} 29. a3 {[%clk
0:01:58.7]} 29... Bxa3 {[%clk 0:00:13]} 30. Rxb1 {[%clk 0:01:58.1]} 1-0

[Event "Late-Titled-Tuesday-Blitz-June-18-2024"]
[Site "Chess.com"]
[Date "2024.06.18"]
[Round "10"]
[White "OIAM03"]
[Black "probablybad04"]
[Result "0-1"]
[WhiteElo "2013"]
[BlackElo "2451"]
[TimeControl "180+1"]
[EndTime "15:53:51 PDT"]
[Termination "probablybad04 won on time"]

1. e4 {[%clk 0:02:59.9]} 1... e5 {[%clk 0:02:57.7]} 2. Nf3 {[%clk 0:02:59.1]}
2... Nc6 {[%clk 0:02:52.8]} 3. d4 {[%clk 0:02:58.9]} 3... exd4 {[%clk
0:02:50.2]} 4. Nxd4 {[%clk 0:02:58.8]} 4... Bb4+ {[%clk 0:02:50.1]} 5. c3 {[%clk
0:02:47.6]} 5... Bc5 {[%clk 0:02:49]} 6. Be3 {[%clk 0:02:40.8]} 6... Bb6 {[%clk
0:02:48.7]} 7. Bc4 {[%clk 0:02:34.5]} 7... Nf6 {[%clk 0:02:43.8]} 8. Nd2 {[%clk
0:02:33.6]} 8... d6 {[%clk 0:02:41]} 9. O-O {[%clk 0:02:32.4]} 9... O-O {[%clk
0:02:39.5]} 10. h3 {[%clk 0:02:31.6]} 10... Re8 {[%clk 0:02:39.5]} 11. Bd3
{[%clk 0:02:00.8]} 11... d5 {[%clk 0:02:27]} 12. Nxc6 {[%clk 0:01:22.1]} 12...
bxc6 {[%clk 0:02:27.9]} 13. Bxb6 {[%clk 0:01:06.2]} 13... axb6 {[%clk
0:02:24.8]} 14. Re1 {[%clk 0:01:01.1]} 14... Qd6 {[%clk 0:02:13.6]} 15. c4
{[%clk 0:00:32]} 15... d4 {[%clk 0:02:11.6]} 16. Nf3 {[%clk 0:00:29.3]} 16...
Nd7 {[%clk 0:01:58.7]} 17. Bc2 {[%clk 0:00:15.9]} 17... c5 {[%clk 0:01:55.7]}
18. e5 {[%clk 0:00:07.3]} 18... Nxe5 {[%clk 0:01:52.5]} 19. Nxe5 {[%clk
0:00:02.7]} 19... Rxe5 {[%clk 0:01:50.4]} 20. Qd3 {[%clk 0:00:02.2]} 20... Bf5
{[%clk 0:01:48.1]} 0-1

[Event "Late-Titled-Tuesday-Blitz-June-18-2024"]
[Site "Chess.com"]
[Date "2024.06.18"]
[Round "10"]
[White "Bauman_Guy"]
[Black "HansOnTwitch"]
[Result "1-0"]
[WhiteElo "2946"]
[BlackElo "3126"]
[TimeControl "180+1"]
[EndTime "15:54:10 PDT"]
[Termination "Bauman_Guy won by resignation"]

1. e4 {[%clk 0:03:00.9]} 1... c5 {[%clk 0:02:57]} 2. Nf3 {[%clk 0:03:00.9]} 2...
d6 {[%clk 0:02:55]} 3. d4 {[%clk 0:03:01.2]} 3... cxd4 {[%clk 0:02:54.4]} 4.
Nxd4 {[%clk 0:03:02]} 4... Nf6 {[%clk 0:02:54.9]} 5. Nc3 {[%clk 0:03:02.1]} 5...
a6 {[%clk 0:02:55.6]} 6. h3 {[%clk 0:03:01]} 6... e5 {[%clk 0:02:55.2]} 7. Nde2
{[%clk 0:03:00.9]} 7... h5 {[%clk 0:02:53.7]} 8. Bg5 {[%clk 0:03:01.4]} 8... Be6
{[%clk 0:02:51.9]} 9. Nc1 {[%clk 0:03:00.6]} 9... Nbd7 {[%clk 0:02:50.1]} 10.
Be2 {[%clk 0:02:59.3]} 10... Be7 {[%clk 0:02:49.4]} 11. Nb3 {[%clk 0:02:59.1]}
11... b5 {[%clk 0:02:49.1]} 12. a4 {[%clk 0:02:57.4]} 12... b4 {[%clk
0:02:46.1]} 13. Nd5 {[%clk 0:02:57.5]} 13... Nxd5 {[%clk 0:02:16]} 14. exd5
{[%clk 0:02:58.4]} 14... Bf5 {[%clk 0:02:16.2]} 15. Bxe7 {[%clk 0:02:56.5]}
15... Qxe7 {[%clk 0:02:17.1]} 16. Na5 {[%clk 0:02:48.4]} 16... Qg5 {[%clk
0:02:14.3]} 17. g3 {[%clk 0:02:48.2]} 17... h4 {[%clk 0:02:10.1]} 18. g4 {[%clk
0:02:46.6]} 18... Bg6 {[%clk 0:02:07.9]} 19. Nc6 {[%clk 0:02:43.7]} 19... Nf6
{[%clk 0:01:53.2]} 20. Nxb4 {[%clk 0:02:29.3]} 20... O-O {[%clk 0:01:52]} 21.
Nc6 {[%clk 0:02:22.8]} 21... Rfe8 {[%clk 0:01:44.9]} 22. c4 {[%clk 0:02:20]}
22... e4 {[%clk 0:01:43.2]} 23. O-O {[%clk 0:02:19.6]} 23... Qf4 {[%clk
0:01:40.7]} 24. Qd4 {[%clk 0:02:16.7]} 24... Nh7 {[%clk 0:01:34.5]} 25. Qe3
{[%clk 0:02:13.2]} 25... Qf6 {[%clk 0:01:34.4]} 26. b4 {[%clk 0:02:12.7]} 26...
Ng5 {[%clk 0:01:33.8]} 27. b5 {[%clk 0:01:57.2]} 27... axb5 {[%clk 0:01:32.3]}
28. cxb5 {[%clk 0:01:57.4]} 28... Nf3+ {[%clk 0:01:26]} 29. Bxf3 {[%clk
0:01:55.6]} 29... exf3 {[%clk 0:01:26.9]} 30. Qd4 {[%clk 0:01:56.2]} 30... Qg5
{[%clk 0:01:25.7]} 31. Rfe1 {[%clk 0:01:54]} 31... f5 {[%clk 0:01:24.1]} 32. b6
{[%clk 0:01:51.5]} 32... Bh5 {[%clk 0:01:15.6]} 33. Kh2 {[%clk 0:01:33.2]} 33...
fxg4 {[%clk 0:01:01.8]} 34. hxg4 {[%clk 0:01:32.8]} 34... Bxg4 {[%clk
0:00:43.8]} 35. Rg1 {[%clk 0:01:22.3]} 35... Re2 {[%clk 0:00:43.4]} 36. Rxg4
{[%clk 0:01:18.4]} 36... Rxf2+ {[%clk 0:00:43.4]} 37. Kh1 {[%clk 0:01:15.4]} 1-0

[Event "Late-Titled-Tuesday-Blitz-June-18-2024"]
[Site "Chess.com"]
[Date "2024.06.18"]
[Round "10"]
[White "Romkachess"]
[Black "Kaustubh_Kodihalli"]
[Result "1-0"]
[WhiteElo "2497"]
[BlackElo "2379"]
[TimeControl "180+1"]
[EndTime "15:54:24 PDT"]
[Termination "Romkachess won by resignation"]

1. e4 {[%clk 0:03:00.9]} 1... c5 {[%clk 0:02:56.7]} 2. Nf3 {[%clk 0:03:00.6]}
2... Nc6 {[%clk 0:02:54.6]} 3. Bb5 {[%clk 0:03:00.5]} 3... Nd4 {[%clk
0:02:52.1]} 4. Nxd4 {[%clk 0:03:00.2]} 4... cxd4 {[%clk 0:02:53]} 5. O-O {[%clk
0:03:00.3]} 5... g6 {[%clk 0:02:52.7]} 6. d3 {[%clk 0:03:00.2]} 6... Bg7 {[%clk
0:02:52.5]} 7. f4 {[%clk 0:03:00.4]} 7... Nh6 {[%clk 0:02:49.3]} 8. Nd2 {[%clk
0:02:50]} 8... f5 {[%clk 0:02:42.6]} 9. Bc4 {[%clk 0:02:48.9]} 9... e6 {[%clk
0:02:39.8]} 10. Nf3 {[%clk 0:02:49.1]} 10... O-O {[%clk 0:02:39.4]} 11. Bd2
{[%clk 0:02:47.4]} 11... Nf7 {[%clk 0:02:34]} 12. a4 {[%clk 0:02:42.3]} 12... b6
{[%clk 0:02:18.1]} 13. Qe2 {[%clk 0:02:37.4]} 13... Bb7 {[%clk 0:02:17.6]} 14.
Bb4 {[%clk 0:02:29.4]} 14... Re8 {[%clk 0:02:13.8]} 15. Rae1 {[%clk 0:02:23.6]}
15... d5 {[%clk 0:02:09]} 16. exd5 {[%clk 0:02:21.1]} 16... Bxd5 {[%clk
0:02:09.9]} 17. Bb5 {[%clk 0:02:15.9]} 17... Re7 {[%clk 0:01:55.9]} 18. Bxe7
{[%clk 0:02:13.3]} 18... Qxe7 {[%clk 0:01:56.8]} 19. Ng5 {[%clk 0:02:10.8]}
19... Nxg5 {[%clk 0:01:50]} 20. fxg5 {[%clk 0:02:02.1]} 20... Qxg5 {[%clk
0:01:41.4]} 21. Bc4 {[%clk 0:02:00.6]} 21... Bxc4 {[%clk 0:01:41.6]} 22. dxc4
{[%clk 0:02:01.5]} 22... e5 {[%clk 0:01:42.1]} 23. c5 {[%clk 0:01:56.7]} 23...
bxc5 {[%clk 0:01:34.9]} 24. Qc4+ {[%clk 0:01:52.8]} 24... Kh8 {[%clk 0:01:35]}
25. Qxc5 {[%clk 0:01:53.2]} 25... Qf6 {[%clk 0:01:10.9]} 26. a5 {[%clk
0:01:47.4]} 26... e4 {[%clk 0:01:09.2]} 27. Rxe4 {[%clk 0:01:46.3]} 27... d3
{[%clk 0:01:03.2]} 28. cxd3 {[%clk 0:01:40.4]} 28... Qxb2 {[%clk 0:01:02.8]} 29.
Rc4 {[%clk 0:01:38.4]} 29... Rd8 {[%clk 0:00:59.1]} 30. Kh1 {[%clk 0:01:34.4]}
30... Qe2 {[%clk 0:00:53.5]} 31. Rfc1 {[%clk 0:01:24.1]} 31... Re8 {[%clk
0:00:13.3]} 32. Qxa7 {[%clk 0:01:14.3]} 32... Qe1+ {[%clk 0:00:13.5]} 33. Rxe1
{[%clk 0:01:14.1]} 1-0

[Event "Late-Titled-Tuesday-Blitz-June-18-2024"]
[Site "Chess.com"]
[Date "2024.06.18"]
[Round "10"]
[White "HajiyevKanan"]
[Black "A4RookA3"]
[Result "1-0"]
[WhiteElo "2564"]
[BlackElo "2445"]
[TimeControl "180+1"]
[EndTime "15:54:25 PDT"]
[Termination "HajiyevKanan won on time"]

1. d4 {[%clk 0:02:54.9]} 1... d5 {[%clk 0:01:50.9]} 2. Nf3 {[%clk 0:02:55.8]}
2... Nf6 {[%clk 0:01:50.6]} 3. c4 {[%clk 0:02:54.8]} 3... c6 {[%clk 0:01:50.8]}
4. cxd5 {[%clk 0:02:55.7]} 4... cxd5 {[%clk 0:01:51.7]} 5. Nc3 {[%clk
0:02:56.3]} 5... Nc6 {[%clk 0:01:52]} 6. Bg5 {[%clk 0:02:56.9]} 6... a6 {[%clk
0:01:52.7]} 7. Bxf6 {[%clk 0:02:56.8]} 7... gxf6 {[%clk 0:01:53.6]} 8. Qb3
{[%clk 0:02:57]} 8... e6 {[%clk 0:01:53.3]} 9. e3 {[%clk 0:02:57.7]} 9... Bd6
{[%clk 0:01:51.7]} 10. Be2 {[%clk 0:02:57.9]} 10... Na5 {[%clk 0:01:52.2]} 11.
Qc2 {[%clk 0:02:58]} 11... Bd7 {[%clk 0:01:43.6]} 12. O-O {[%clk 0:02:58.2]}
12... O-O {[%clk 0:01:43.5]} 13. e4 {[%clk 0:02:58.7]} 13... dxe4 {[%clk
0:01:39.8]} 14. Nxe4 {[%clk 0:02:58.4]} 14... Be7 {[%clk 0:01:29.6]} 15. Qd2
{[%clk 0:02:48.9]} 15... Bc6 {[%clk 0:01:09.6]} 16. Ng3 {[%clk 0:02:39.9]} 16...
Qd5 {[%clk 0:01:02.5]} 17. Qh6 {[%clk 0:02:38.9]} 17... Kh8 {[%clk 0:00:42.1]}
18. Nh5 {[%clk 0:02:33.8]} 18... Rg8 {[%clk 0:00:40.7]} 19. Nxf6 {[%clk
0:02:32.8]} 19... Bxf6 {[%clk 0:00:28.8]} 20. Qxf6+ {[%clk 0:02:31.9]} 20... Rg7
{[%clk 0:00:27.1]} 21. Rfc1 {[%clk 0:02:25.3]} 21... b6 {[%clk 0:00:15.2]} 22.
Rc3 {[%clk 0:01:29.5]} 22... Rg8 {[%clk 0:00:05]} 23. g3 {[%clk 0:01:20.5]}
23... Nb7 {[%clk 0:00:01.5]} 24. Bc4 {[%clk 0:01:10.6]} 1-0

[Event "Late-Titled-Tuesday-Blitz-June-18-2024"]
[Site "Chess.com"]
[Date "2024.06.18"]
[Round "10"]
[White "ClauAmura"]
[Black "xasid81"]
[Result "0-1"]
[WhiteElo "2388"]
[BlackElo "2578"]
[TimeControl "180+1"]
[EndTime "15:54:27 PDT"]
[Termination "xasid81 won by resignation"]

1. d4 {[%clk 0:03:00.9]} 1... d5 {[%clk 0:02:59.8]} 2. Bg5 {[%clk 0:02:59.7]}
2... h6 {[%clk 0:02:58.5]} 3. Bh4 {[%clk 0:02:59.1]} 3... c6 {[%clk 0:02:59.1]}
4. c3 {[%clk 0:02:51.7]} 4... Qb6 {[%clk 0:02:57.5]} 5. Qb3 {[%clk 0:02:51.7]}
5... Bf5 {[%clk 0:02:57.7]} 6. Nd2 {[%clk 0:02:50.9]} 6... Nd7 {[%clk
0:02:56.9]} 7. h3 {[%clk 0:02:50.9]} 7... e6 {[%clk 0:02:55.1]} 8. g4 {[%clk
0:02:51]} 8... Bh7 {[%clk 0:02:54.6]} 9. e3 {[%clk 0:02:51.1]} 9... Bd6 {[%clk
0:02:54.1]} 10. Ne2 {[%clk 0:02:50.3]} 10... Ngf6 {[%clk 0:02:52.5]} 11. Bg3
{[%clk 0:02:50.9]} 11... Bxg3 {[%clk 0:02:51.4]} 12. Nxg3 {[%clk 0:02:50.9]}
12... e5 {[%clk 0:02:50.5]} 13. Be2 {[%clk 0:02:44.8]} 13... O-O {[%clk
0:02:49.2]} 14. Qxb6 {[%clk 0:02:41.6]} 14... axb6 {[%clk 0:02:49]} 15. a3
{[%clk 0:02:40.6]} 15... Rfe8 {[%clk 0:02:48.8]} 16. O-O {[%clk 0:02:35.7]}
16... c5 {[%clk 0:02:48.7]} 17. Bb5 {[%clk 0:02:28.7]} 17... exd4 {[%clk
0:02:47.3]} 18. cxd4 {[%clk 0:02:27.7]} 18... Rec8 {[%clk 0:02:43.3]} 19. Nf3
{[%clk 0:02:20.4]} 19... Nf8 {[%clk 0:02:36.4]} 20. Ne5 {[%clk 0:02:17.9]} 20...
cxd4 {[%clk 0:02:33.4]} 21. exd4 {[%clk 0:02:17.3]} 21... Ne6 {[%clk 0:02:34.1]}
22. Rfd1 {[%clk 0:02:14.2]} 22... Rc2 {[%clk 0:02:30.4]} 23. Nf5 {[%clk
0:01:55.4]} 23... Bxf5 {[%clk 0:02:26.9]} 24. gxf5 {[%clk 0:01:55.5]} 24... Nf4
{[%clk 0:02:25.4]} 25. Bf1 {[%clk 0:01:47.8]} 25... Ne4 {[%clk 0:02:24.2]} 26.
Nd3 {[%clk 0:01:35.1]} 26... Nxd3 {[%clk 0:02:03.6]} 27. Bxd3 {[%clk 0:01:36]}
27... Rxb2 {[%clk 0:02:02.3]} 28. Bxe4 {[%clk 0:01:36.6]} 28... dxe4 {[%clk
0:02:03.2]} 29. Rab1 {[%clk 0:01:37.1]} 29... Rxb1 {[%clk 0:02:01.8]} 30. Rxb1
{[%clk 0:01:36.5]} 30... Rxa3 {[%clk 0:02:02.4]} 31. Rxb6 {[%clk 0:01:34.8]}
31... Rxh3 {[%clk 0:01:56.3]} 32. Rxb7 {[%clk 0:01:34.7]} 32... Rd3 {[%clk
0:01:56.3]} 33. Rb8+ {[%clk 0:01:30.8]} 33... Kh7 {[%clk 0:01:56.2]} 34. Rd8
{[%clk 0:01:31.3]} 34... f6 {[%clk 0:01:54.1]} 35. Kf1 {[%clk 0:01:30.3]} 35...
h5 {[%clk 0:01:54]} 36. Kg2 {[%clk 0:01:30]} 36... Kh6 {[%clk 0:01:53.7]} 37.
Rd7 {[%clk 0:01:28.7]} 37... h4 {[%clk 0:01:50.4]} 38. Kh2 {[%clk 0:01:22.2]}
38... g6 {[%clk 0:01:45.4]} 39. fxg6 {[%clk 0:01:19.3]} 39... Kxg6 {[%clk
0:01:45.4]} 40. Rd5 {[%clk 0:01:17.3]} 40... f5 {[%clk 0:01:44.2]} 41. Kg2
{[%clk 0:01:16]} 41... Kg5 {[%clk 0:01:44]} 42. Rd8 {[%clk 0:01:09.7]} 42... h3+
{[%clk 0:01:42.5]} 43. Kh2 {[%clk 0:01:08.7]} 43... Kf4 {[%clk 0:01:42.6]} 44.
d5 {[%clk 0:01:06]} 44... Rd2 {[%clk 0:01:39.4]} 45. Kxh3 {[%clk 0:01:04.7]}
45... Rxf2 {[%clk 0:01:39.4]} 46. d6 {[%clk 0:01:04.3]} 46... Rd2 {[%clk
0:01:38.6]} 47. d7 {[%clk 0:00:43.1]} 47... e3 {[%clk 0:01:34.3]} 0-1

[Event "Late-Titled-Tuesday-Blitz-June-18-2024"]
[Site "Chess.com"]
[Date "2024.06.18"]
[Round "10"]
[White "DanylaBagrov"]
[Black "GM_dmitrij"]
[Result "1/2-1/2"]
[WhiteElo "2546"]
[BlackElo "2998"]
[TimeControl "180+1"]
[EndTime "15:54:28 PDT"]
[Termination "Game drawn by repetition"]

1. e4 {[%clk 0:03:00.9]} 1... c6 {[%clk 0:02:55.4]} 2. d4 {[%clk 0:02:58.5]}
2... d5 {[%clk 0:02:55.8]} 3. exd5 {[%clk 0:02:59]} 3... cxd5 {[%clk 0:02:56.7]}
4. Bd3 {[%clk 0:02:58.8]} 4... Nf6 {[%clk 0:02:56.3]} 5. c3 {[%clk 0:02:51.3]}
5... Bg4 {[%clk 0:02:56.7]} 6. Qb3 {[%clk 0:02:50.4]} 6... Qc7 {[%clk
0:02:55.5]} 7. Ne2 {[%clk 0:02:46.9]} 7... Bxe2 {[%clk 0:02:53.1]} 8. Bxe2
{[%clk 0:02:45.7]} 8... e6 {[%clk 0:02:52.9]} 9. Bg5 {[%clk 0:02:33.3]} 9... Bd6
{[%clk 0:02:52.4]} 10. Nd2 {[%clk 0:02:23.4]} 10... Nc6 {[%clk 0:02:44.5]} 11.
Bxf6 {[%clk 0:02:19.5]} 11... gxf6 {[%clk 0:02:44.8]} 12. Nf3 {[%clk 0:02:13.6]}
12... a6 {[%clk 0:02:31.6]} 13. g3 {[%clk 0:02:08.4]} 13... f5 {[%clk
0:02:18.2]} 14. O-O-O {[%clk 0:02:01.1]} 14... b5 {[%clk 0:02:09.1]} 15. Rhe1
{[%clk 0:01:39.9]} 15... O-O {[%clk 0:01:41.8]} 16. Qc2 {[%clk 0:01:08.1]} 16...
Rac8 {[%clk 0:01:28.1]} 17. Kb1 {[%clk 0:01:03.5]} 17... Qb6 {[%clk 0:01:08.3]}
18. Bd3 {[%clk 0:00:44.1]} 18... Nb4 {[%clk 0:00:54.6]} 19. Qd2 {[%clk
0:00:39.8]} 19... Nxd3 {[%clk 0:00:54.8]} 20. Qg5+ {[%clk 0:00:37.4]} 20... Kh8
{[%clk 0:00:50.5]} 21. Qf6+ {[%clk 0:00:38.3]} 21... Kg8 {[%clk 0:00:50.9]} 22.
Qg5+ {[%clk 0:00:26.5]} 22... Kh8 {[%clk 0:00:51.1]} 23. Qf6+ {[%clk 0:00:19.7]}
23... Kg8 {[%clk 0:00:50.8]} 24. Qg5+ {[%clk 0:00:15.3]} 1/2-1/2

[Event "Late-Titled-Tuesday-Blitz-June-18-2024"]
[Site "Chess.com"]
[Date "2024.06.18"]
[Round "10"]
[White "divudis17"]
[Black "JAN2404"]
[Result "1-0"]
[WhiteElo "2334"]
[BlackElo "2090"]
[TimeControl "180+1"]
[EndTime "15:54:29 PDT"]
[Termination "divudis17 won by checkmate"]

1. Nf3 {[%clk 0:03:00.9]} 1... c5 {[%clk 0:02:54]} 2. c4 {[%clk 0:02:57.6]} 2...
g6 {[%clk 0:02:50.8]} 3. e4 {[%clk 0:02:55.4]} 3... Bg7 {[%clk 0:02:51.7]} 4. d4
{[%clk 0:02:55.5]} 4... cxd4 {[%clk 0:02:50.3]} 5. Nxd4 {[%clk 0:02:56.4]} 5...
d6 {[%clk 0:02:48.8]} 6. Nc3 {[%clk 0:02:56.3]} 6... Nc6 {[%clk 0:02:41.2]} 7.
Be3 {[%clk 0:02:54.8]} 7... Nf6 {[%clk 0:02:40.5]} 8. f3 {[%clk 0:02:53.1]} 8...
Bd7 {[%clk 0:02:30.8]} 9. Be2 {[%clk 0:02:50.6]} 9... Rc8 {[%clk 0:02:20.9]} 10.
O-O {[%clk 0:02:46.7]} 10... O-O {[%clk 0:02:20.9]} 11. Rc1 {[%clk 0:02:45.9]}
11... Qa5 {[%clk 0:02:16.6]} 12. a3 {[%clk 0:02:43.8]} 12... Nxd4 {[%clk
0:02:09.2]} 13. Bxd4 {[%clk 0:02:41.7]} 13... Be6 {[%clk 0:02:09.4]} 14. Nd5
{[%clk 0:02:35.5]} 14... Bxd5 {[%clk 0:02:03.9]} 15. cxd5 {[%clk 0:02:29.1]}
15... a6 {[%clk 0:02:04.3]} 16. Qb3 {[%clk 0:02:21.2]} 16... Qd2 {[%clk
0:01:54.9]} 17. Qd3 {[%clk 0:02:20]} 17... Nxe4 {[%clk 0:01:47.5]} 18. Bxg7
{[%clk 0:02:11.2]} 18... Rxc1 {[%clk 0:01:41.7]} 19. Bxf8 {[%clk 0:01:31.1]}
19... Rxf1+ {[%clk 0:00:49.4]} 20. Kxf1 {[%clk 0:01:11.7]} 20... Qc1+ {[%clk
0:00:46.2]} 21. Qd1 {[%clk 0:01:04.1]} 21... Nd2+ {[%clk 0:00:45.6]} 22. Ke1
{[%clk 0:01:01.7]} 22... Qc5 {[%clk 0:00:24.6]} 23. Qxd2 {[%clk 0:00:57.1]}
23... Kxf8 {[%clk 0:00:23.1]} 24. Qc3 {[%clk 0:00:48.3]} 24... Qg1+ {[%clk
0:00:20.3]} 25. Bf1 {[%clk 0:00:48.8]} 25... Qxh2 {[%clk 0:00:19.5]} 26. Qh8#
{[%clk 0:00:48.2]} 1-0

[Event "Late-Titled-Tuesday-Blitz-June-18-2024"]
[Site "Chess.com"]
[Date "2024.06.18"]
[Round "10"]
[White "carloseduar100"]
[Black "KorolDimitriy75"]
[Result "1-0"]
[WhiteElo "2258"]
[BlackElo "2430"]
[TimeControl "180+1"]
[EndTime "15:54:30 PDT"]
[Termination "carloseduar100 won on time"]

1. g3 {[%clk 0:02:16.4]} 1... c5 {[%clk 0:03:00]} 2. Bg2 {[%clk 0:02:17.3]} 2...
g6 {[%clk 0:03:00.5]} 3. Nf3 {[%clk 0:02:18.2]} 3... Bg7 {[%clk 0:03:01]} 4. O-O
{[%clk 0:02:19.1]} 4... Nc6 {[%clk 0:03:01.5]} 5. d3 {[%clk 0:02:20]} 5... e5
{[%clk 0:03:01.2]} 6. Nbd2 {[%clk 0:02:20.9]} 6... Nge7 {[%clk 0:03:01.3]} 7.
Re1 {[%clk 0:02:21.3]} 7... d6 {[%clk 0:03:01.5]} 8. e4 {[%clk 0:02:21.6]} 8...
O-O {[%clk 0:03:01.9]} 9. h4 {[%clk 0:02:22.2]} 9... h6 {[%clk 0:03:01.6]} 10.
Nf1 {[%clk 0:02:22.9]} 10... Kh7 {[%clk 0:03:01.2]} 11. Be3 {[%clk 0:02:23.3]}
11... f5 {[%clk 0:03:00.8]} 12. exf5 {[%clk 0:02:23.1]} 12... Nxf5 {[%clk
0:02:59.3]} 13. Qd2 {[%clk 0:02:22.3]} 13... Be6 {[%clk 0:02:58.1]} 14. Rad1
{[%clk 0:02:17.3]} 14... Qd7 {[%clk 0:02:58]} 15. a3 {[%clk 0:02:17.1]} 15...
Rf7 {[%clk 0:02:56.8]} 16. c3 {[%clk 0:02:17.4]} 16... Raf8 {[%clk 0:02:36.1]}
17. N1h2 {[%clk 0:02:17]} 17... b6 {[%clk 0:01:59.1]} 18. b4 {[%clk 0:02:16.2]}
18... Nxe3 {[%clk 0:01:19.4]} 19. Rxe3 {[%clk 0:02:12.9]} 19... Bf5 {[%clk
0:01:05.8]} 20. Rde1 {[%clk 0:02:09.1]} 20... Ne7 {[%clk 0:00:23.5]} 21. d4
{[%clk 0:02:05.3]} 21... cxd4 {[%clk 0:00:08.7]} 22. cxd4 {[%clk 0:02:04.8]}
22... e4 {[%clk 0:00:08.8]} 23. Rxe4 {[%clk 0:01:58.4]} 23... Bxe4 {[%clk
0:00:09.1]} 24. Rxe4 {[%clk 0:01:58.5]} 24... Nf5 {[%clk 0:00:07.2]} 25. d5
{[%clk 0:01:30.5]} 25... Qa4 {[%clk 0:00:05.2]} 26. Qd3 {[%clk 0:01:25.8]} 26...
Re7 {[%clk 0:00:04.2]} 27. g4 {[%clk 0:01:13.2]} 1-0

[Event "Late-Titled-Tuesday-Blitz-June-18-2024"]
[Site "Chess.com"]
[Date "2024.06.18"]
[Round "10"]
[White "Losingexperience"]
[Black "Tunahan_Makaraci"]
[Result "1-0"]
[WhiteElo "2753"]
[BlackElo "2634"]
[TimeControl "180+1"]
[EndTime "15:54:31 PDT"]
[Termination "Losingexperience won by resignation"]

1. e4 {[%clk 0:03:00.9]} 1... c5 {[%clk 0:02:58.4]} 2. Nf3 {[%clk 0:03:00.3]}
2... Nc6 {[%clk 0:02:58.2]} 3. Bb5 {[%clk 0:02:58.9]} 3... d6 {[%clk 0:02:58.3]}
4. O-O {[%clk 0:02:57.8]} 4... Bd7 {[%clk 0:02:57.8]} 5. Re1 {[%clk 0:02:57.5]}
5... Nf6 {[%clk 0:02:56.8]} 6. c3 {[%clk 0:02:56.4]} 6... a6 {[%clk 0:02:57.3]}
7. Bf1 {[%clk 0:02:55.8]} 7... Bg4 {[%clk 0:02:57.9]} 8. h3 {[%clk 0:02:53.8]}
8... Bxf3 {[%clk 0:02:58]} 9. Qxf3 {[%clk 0:02:54.7]} 9... e6 {[%clk 0:02:57]}
10. Na3 {[%clk 0:02:41.9]} 10... Rg8 {[%clk 0:02:56.9]} 11. Nc2 {[%clk 0:02:41]}
11... g5 {[%clk 0:02:56.8]} 12. d4 {[%clk 0:02:41.4]} 12... cxd4 {[%clk
0:02:52.5]} 13. Nxd4 {[%clk 0:02:38.8]} 13... g4 {[%clk 0:02:51.4]} 14. hxg4
{[%clk 0:02:37.4]} 14... Nxg4 {[%clk 0:02:51.1]} 15. Nxc6 {[%clk 0:02:33.4]}
15... bxc6 {[%clk 0:02:52]} 16. Bf4 {[%clk 0:02:33.7]} 16... e5 {[%clk
0:02:37.4]} 17. Bg3 {[%clk 0:02:25.4]} 17... Be7 {[%clk 0:02:36.8]} 18. Bc4
{[%clk 0:02:23.3]} 18... Rg7 {[%clk 0:02:20.7]} 19. Bxf7+ {[%clk 0:02:16.4]}
19... Rxf7 {[%clk 0:02:20.4]} 20. Qxg4 {[%clk 0:02:16.7]} 20... Qd7 {[%clk
0:02:18.9]} 21. Qg8+ {[%clk 0:02:09.2]} 21... Bf8 {[%clk 0:02:15.2]} 22. Rad1
{[%clk 0:02:07]} 22... O-O-O {[%clk 0:02:13]} 23. Qg5 {[%clk 0:01:20.3]} 23...
Be7 {[%clk 0:02:07.4]} 24. Qh5 {[%clk 0:01:20.1]} 24... Rg7 {[%clk 0:02:02.5]}
25. Qe2 {[%clk 0:01:14.6]} 25... Kb7 {[%clk 0:02:00.9]} 26. Bxe5 {[%clk
0:01:10.8]} 26... Rg6 {[%clk 0:01:58.6]} 27. Bg3 {[%clk 0:01:10.3]} 27... Rdg8
{[%clk 0:01:57.8]} 28. e5 {[%clk 0:01:10.5]} 28... d5 {[%clk 0:01:56.7]} 29. e6
{[%clk 0:01:09.6]} 29... Qc8 {[%clk 0:01:55.3]} 30. c4 {[%clk 0:01:03.6]} 30...
h5 {[%clk 0:01:52.4]} 31. cxd5 {[%clk 0:01:02.3]} 31... h4 {[%clk 0:01:52.2]}
32. dxc6+ {[%clk 0:00:59.1]} 32... Qxc6 {[%clk 0:01:51.9]} 33. Rd7+ {[%clk
0:00:58.7]} 33... Ka8 {[%clk 0:01:44.3]} 34. Rc7 {[%clk 0:00:55.5]} 34... Qa4
{[%clk 0:00:47.2]} 35. Qf3+ {[%clk 0:00:50.4]} 1-0